bitfinex-derivatives/quotes_BTCF0:USTF0_20250212
["timestamp","ask_amount","ask_price","bid_price","bid_amount"]
[1739402888359,1.2653674,97801.0,97800.0,1e-08]
[1739402889055,0.4878,97801.0,97800.0,1e-08]
[1739402889262,0.4878,97801.0,97800.0,0.20446961]
[1739402890071,0.6922675,97801.0,97800.0,1e-08]
[1739402890965,0.4878,97801.0,97800.0,0.20446961]
[1739402891170,0.4828,97801.0,97800.0,0.20446961]
[1739402891669,0.4828,97801.0,97800.0,1e-08]
[1739402892661,0.122,97801.0,97800.0,1e-08]
[1739402893571,0.12,97801.0,97800.0,1e-08]
[1739402893770,0.12,97801.0,97800.0,0.20446951]
[1739402894269,0.121,97801.0,97800.0,0.20446951]
[1739402894870,0.12,97801.0,97800.0,0.20446951]
[1739402895569,0.121,97801.0,97800.0,0.20446951]
[1739402895959,0.121,97801.0,97800.0,1e-08]
[1739402896468,0.121,97801.0,97800.0,0.20446961]
[1739402898173,0.12,97801.0,97800.0,0.20446961]
[1739402899071,0.3244675,97801.0,97800.0,1e-08]
[1739402900771,0.3284675,97801.0,97800.0,1e-08]
[1739402903072,0.3274675,97801.0,97800.0,1e-08]
[1739402903474,0.3294675,97801.0,97800.0,1e-08]
[1739402903668,0.55839755,97801.0,97800.0,1e-08]
[1739402903971,0.85839755,97801.0,97800.0,1e-08]
[1739402905165,0.90812411,97801.0,97800.0,1e-08]
[1739402906274,0.2045404,97766.0,97765.0,0.0531]
[1739402906476,0.3245404,97766.0,97765.0,0.2576425]
[1739402907172,0.3245404,97766.0,97765.0,0.0531]
[1739402907475,0.121,97766.0,97732.0,0.3608]
[1739402907771,0.121,97766.0,97731.0,0.0511532]
[1739402907772,0.2045469,97763.0,97761.0,0.2045506]
[1739402908075,0.2045489,97762.0,97761.0,0.2045506]
[1739402908275,0.3445489,97762.0,97761.0,0.2045506]
[1739402908775,0.3445489,97762.0,97757.0,0.2045584]
[1739402908968,0.15071685,97762.0,97753.0,0.3608]
[1739402909167,0.15071685,97762.0,97753.0,0.5653677]
[1739402909373,0.2045532,97760.0,97753.0,0.5653677]
[1739402909670,0.2045657,97754.0,97753.0,0.3608]
[1739402910777,0.3245657,97754.0,97753.0,0.3608]
[1739402910975,0.2045678,97753.0,97752.0,0.0583]
[1739402911176,0.3245678,97753.0,97752.0,0.0583]
[1739402912871,0.3255678,97753.0,97752.0,0.0583]
[1739402914879,0.121,97753.0,97733.0,0.3608]
[1739402915084,0.2046054,97735.0,97734.0,0.1698]
[1739402915985,0.01065407,97735.0,97734.0,0.1698]
[1739402916181,0.3608,97743.0,97734.0,0.1698]
[1739402916383,0.001,97735.0,97734.0,0.1698]
[1739402917287,0.2046004,97738.0,97734.0,0.1698]
[1739402917484,0.3246004,97738.0,97734.0,0.1698]
[1739402917887,0.12,97738.0,97734.0,0.1698]
[1739402918085,0.12,97738.0,97720.0,0.12041195]
[1739402918281,0.12,97738.0,97717.0,0.1094]
[1739402918486,0.2046135,97732.0,97720.0,0.12041195]
[1739402918788,0.2046135,97732.0,97728.0,0.2046199]
[1739402918789,0.3146135,97732.0,97728.0,0.2046199]
[1739402919494,0.11,97732.0,97724.0,0.3608]
[1739402919687,0.11,97732.0,97731.0,0.2046138]
[1739402919889,0.111,97732.0,97731.0,0.2046138]
[1739402920288,0.001,97732.0,97731.0,0.2046138]
[1739402922280,0.3608,97741.0,97736.0,0.2046015]
[1739402922491,0.3608,97741.0,97724.0,0.3608]
[1739402922492,0.4808,97741.0,97737.0,0.2046]
[1739402922996,0.4808,97741.0,97730.0,0.12041195]
[1739402923198,0.4808,97741.0,97738.0,0.2045984]
[1739402923395,0.4818,97741.0,97738.0,0.2045984]
[1739402924099,0.204605,97736.0,97724.0,0.3608]
[1739402924394,0.204605,97736.0,97730.0,0.2046156]
[1739402924797,0.3618,97741.0,97724.0,0.3608]
[1739402924987,0.131,97741.0,97737.0,0.2046004]
[1739402925187,0.131,97741.0,97740.0,0.204595]
[1739402926389,0.001,97741.0,97740.0,0.204595]
[1739402926585,0.01070526,97743.0,97742.0,0.2045908]
[1739402926789,0.00015343,97744.0,97743.0,0.2045887]
[1739402929992,0.01106425,97744.0,97742.0,0.3608]
[1739402932705,0.01106425,97744.0,97743.0,0.2045887]
[1739402933503,0.00015343,97744.0,97743.0,0.20464035]
[1739402934702,0.00015343,97744.0,97743.0,5.165e-05]
[1739402934903,0.20474003,97744.0,97743.0,5.165e-05]
[1739402935111,0.00015343,97744.0,97743.0,5.165e-05]
[1739402935403,0.00015343,97744.0,97743.0,0.20464035]
[1739402936409,0.00015343,97744.0,97743.0,5.165e-05]
[1739402937101,0.10675343,97744.0,97743.0,5.165e-05]
[1739402940102,0.00015343,97744.0,97743.0,5.165e-05]
[1739402943009,0.20474003,97744.0,97743.0,5.165e-05]
[1739402944806,0.37474003,97744.0,97743.0,5.165e-05]
[1739402948302,0.37474003,97744.0,97743.0,0.20464035]
[1739402948501,0.37474003,97744.0,97743.0,5.165e-05]
[1739402950509,0.17015343,97744.0,97743.0,0.20464035]
[1739402950709,0.17015343,97744.0,97743.0,5.165e-05]
[1739402951716,0.17015343,97744.0,97743.0,0.20464035]
[1739402952514,0.17015343,97744.0,97743.0,5.165e-05]
[1739402954417,0.17015343,97744.0,97743.0,0.20464035]
[1739402954713,0.17015343,97744.0,97743.0,5.165e-05]
[1739402954914,0.37474003,97744.0,97743.0,5.165e-05]
[1739402955315,0.2046076,97734.0,97733.0,0.3608]
[1739402955514,0.12,97734.0,97720.0,0.12041195]
[1739402955817,0.2046132,97732.0,97720.0,0.12041195]
[1739402956015,0.00015343,97744.0,97720.0,0.12041195]
[1739402956212,0.20015343,97744.0,97720.0,0.12041195]
[1739402956419,0.3608,97734.0,97720.0,0.12041195]
[1739402956618,0.4708,97734.0,97720.0,0.12041195]
[1739402957021,0.2046243,97726.0,97720.0,0.12041195]
[1739402957219,0.3246243,97726.0,97713.0,0.00153494]
[1739402957518,0.2046389,97719.0,97713.0,0.00153494]
[1739402957815,0.12,97726.0,97713.0,0.00153494]
[1739402957816,0.37152729,97726.0,97713.0,0.00153494]
[1739402958023,0.2046512,97714.0,97707.0,0.37162007]
[1739402958219,0.13,97714.0,97707.0,0.37162007]
[1739402959728,0.00015351,97720.0,97712.0,0.2046525]
[1739402959913,0.01015351,97720.0,97712.0,0.2046525]
[1739402960522,0.00015351,97720.0,97715.0,0.3608]
[1739402961020,0.00015351,97720.0,97719.0,0.3608]
[1739402961218,0.0015352,97738.0,97719.0,0.3608]
[1739402961419,0.0115352,97738.0,97731.0,0.3608]
[1739402961621,0.0115352,97738.0,97732.0,0.1085]
[1739402961820,0.15199488,97736.0,97732.0,0.1085]
[1739402963524,0.15199488,97736.0,97732.0,0.11915977]
[1739402963729,0.15199488,97736.0,97734.0,0.2046072]
[1739402964025,0.0025352,97738.0,97734.0,0.2046072]
[1739402964225,0.001,97736.0,97734.0,0.2046072]
[1739402964419,0.001,97736.0,97735.0,0.0548]
[1739402964821,0.002,97736.0,97735.0,0.0548]
[1739402967429,0.0015352,97738.0,97735.0,0.0548]
[1739402968423,0.0015352,97738.0,97735.0,0.2594036]
[1739402969530,0.0015352,97738.0,97736.0,0.2046015]
[1739402969834,0.00015351,97744.0,97741.0,0.2045907]
[1739402970026,0.00015351,97744.0,97743.0,0.3608]
[1739402971333,0.00115351,97744.0,97743.0,0.3608]
[1739402977942,0.00015351,97744.0,97743.0,0.3608]
[1739402984747,0.20474001,97744.0,97743.0,0.3608]
[1739402985149,0.20474001,97744.0,97731.0,0.362]
[1739402985150,0.19015351,97744.0,97731.0,0.362]
[1739402985439,0.19015351,97744.0,97731.0,0.3608]
[1739402985842,0.19015351,97744.0,97737.0,0.2046005]
[1739402987645,0.19015351,97744.0,97739.0,0.2045958]
[1739402988447,0.19015351,97744.0,97733.0,0.01066004]
[1739402988644,0.19015351,97744.0,97731.0,0.3608]
[1739402988950,0.19015351,97744.0,97734.0,0.2046069]
[1739402989146,0.204592,97742.0,97731.0,0.3608]
[1739402989448,0.0512,97741.0,97731.0,0.3608]
[1739402989642,0.1712,97741.0,97731.0,0.3608]
[1739402990050,0.0512,97741.0,97731.0,0.3608]
[1739402990345,0.0512,97741.0,97733.0,0.2046087]
[1739402991747,0.0512,97741.0,97733.0,0.21517033]
[1739402992143,0.0512,97741.0,97731.0,0.3608]
[1739402992351,0.1812,97741.0,97731.0,0.3608]
[1739402992852,0.0512,97741.0,97731.0,0.3608]
[1739402993752,0.0512,97741.0,97730.0,0.12041195]
[1739402994056,0.0512,97741.0,97730.0,0.48121195]
[1739402994757,0.0512,97741.0,97730.0,0.68582715]
[1739402995255,0.0512,97741.0,97731.0,0.204613]
[1739402995448,0.0512,97741.0,97731.0,0.21530546]
[1739402996356,0.0512,97741.0,97732.0,0.2046111]
[1739402997551,0.255793,97741.0,97740.0,0.3608]
[1739402997849,0.0512,97741.0,97740.0,0.3608]
[1739402998550,0.00015351,97744.0,97743.0,0.2045886]
[1739402999749,0.00215351,97744.0,97743.0,0.2045886]
[1739403000356,0.00015351,97744.0,97743.0,0.2045886]
[1739403000849,0.15199488,97758.0,97743.0,0.6608]
[1739403001051,0.09863594,97758.0,97757.0,0.5653592]
[1739403001854,0.18239385,97768.0,97757.0,0.5653592]
[1739403001855,0.18239385,97768.0,97767.0,0.2045383]
[1739403002053,0.15712845,97768.0,97767.0,0.5653383]
[1739403002948,0.16312845,97768.0,97767.0,0.5653383]
[1739403003461,0.006,97768.0,97767.0,0.5653383]
[1739403003655,0.00015343,97777.0,97776.0,0.2045195]
[1739403004855,0.02015343,97777.0,97776.0,0.2045195]
[1739403005459,0.02715343,97777.0,97776.0,0.2045195]
[1739403008160,0.02715343,97777.0,97770.0,0.2045312]
[1739403008655,0.02715343,97777.0,97767.0,0.362]
[1739403008656,0.20453,97772.0,97767.0,0.362]
[1739403008855,0.20453,97772.0,97767.0,0.3608]
[1739403009057,0.11,97772.0,97767.0,0.3608]
[1739403010150,0.115,97772.0,97767.0,0.3608]
[1739403011852,0.12582211,97772.0,97767.0,0.3608]
[1739403012760,0.12582211,97772.0,97769.0,0.204534]
[1739403014462,0.12582211,97772.0,97767.0,0.3608]
[1739403015564,0.12082211,97772.0,97767.0,0.3608]
[1739403015761,0.12582211,97772.0,97767.0,0.3608]
[1739403016566,0.12582211,97772.0,97770.0,0.204531]
[1739403017661,0.12582211,97772.0,97767.0,0.3608]
[1739403017862,0.12582211,97772.0,97771.0,0.20453]
[1739403018763,0.12582211,97772.0,97764.0,0.01062008]
[1739403018962,0.12682211,97772.0,97760.0,0.48241195]
[1739403019168,0.12682211,97772.0,97766.0,0.2045394]
[1739403019666,0.12682211,97772.0,97760.0,0.48241195]
[1739403019859,0.12682211,97772.0,97767.0,0.2045369]
[1739403020060,0.12282211,97772.0,97767.0,0.2045369]
[1739403020255,0.12282211,97772.0,97771.0,0.20453]
[1739403020560,0.112,97772.0,97771.0,0.20453]
[1739403022064,0.11,97772.0,97771.0,0.20453]
[1739403022262,0.114,97772.0,97771.0,0.20453]
[1739403022768,0.116,97772.0,97771.0,0.20453]
[1739403026061,0.116,97772.0,97769.0,0.0502]
[1739403027361,0.121,97772.0,97769.0,0.0502]
[1739403030958,0.121,97772.0,97768.0,0.3608]
[1739403031570,0.121,97772.0,97770.0,0.2045307]
[1739403032870,0.115,97772.0,97770.0,0.2045307]
[1739403034768,0.115,97772.0,97771.0,0.3608]
[1739403035964,0.116,97772.0,97771.0,0.3608]
[1739403041176,0.116,97772.0,97771.0,0.56533]
[1739403043578,0.006,97772.0,97771.0,0.56533]
[1739403052279,0.006,97772.0,97771.0,0.20453]
[1739403052476,0.006,97772.0,97771.0,0.56533]
[1739403054985,0.006,97772.0,97771.0,0.3608]
[1739403055582,0.006,97772.0,97771.0,0.5653301]
[1739403062083,0.006,97772.0,97771.0,0.3608]
[1739403063585,0.006,97772.0,97771.0,0.5653301]
[1739403065688,0.00015343,97777.0,97771.0,0.3608]
[1739403065894,0.00015343,97777.0,97772.0,0.2045272]
[1739403066191,0.00015343,97777.0,97759.0,0.3608]
[1739403066192,0.30015343,97777.0,97722.0,0.2815]
[1739403066383,0.30015343,97777.0,97688.0,0.67070646]
[1739403066384,0.07909239,97732.0,97688.0,0.42732033]
[1739403066578,0.3608,97729.0,97680.0,0.21432657]
[1739403066779,0.2046773,97701.0,97684.0,0.3608]
[1739403066985,0.23062712,97701.0,97685.0,0.00084]
[1739403067177,0.7216,97686.0,97654.0,0.89603906]
[1739403067488,0.7216,97655.0,97654.0,0.90665357]
[1739403067787,0.22,97655.0,97654.0,0.89603906]
[1739403068085,0.22,97655.0,97654.0,1.25683906]
[1739403068791,0.22007823,97655.0,97654.0,1.29846012]
[1739403069090,1e-08,97664.0,97654.0,1.34328086]
[1739403069284,0.35,97679.0,97663.0,0.3608]
[1739403069485,0.24,97679.0,97678.0,0.3608]
[1739403069682,0.18806853,97679.0,97678.0,0.3608]
[1739403069882,0.2431918,97685.0,97678.0,0.38640945]
[1739403070092,0.3231918,97685.0,97684.0,0.3608]
[1739403070390,0.3231918,97685.0,97684.0,0.38640945]
[1739403071092,0.33365502,97685.0,97684.0,0.38640945]
[1739403071287,0.3231918,97685.0,97684.0,0.41841752]
[1739403071891,0.3231918,97685.0,97684.0,0.38640945]
[1739403072088,0.5279019,97685.0,97684.0,0.30920945]
[1739403072892,0.2897101,97685.0,97684.0,0.2836]
[1739403073187,0.2847101,97685.0,97684.0,0.2836]
[1739403073381,0.2897101,97685.0,97684.0,0.2836]
[1739403073788,0.385,97685.0,97675.0,0.11247155]
[1739403074091,0.2047353,97673.0,97672.0,0.00056]
[1739403074392,0.2047353,97673.0,97665.0,0.3608]
[1739403074393,0.2047483,97667.0,97665.0,0.3608]
[1739403074587,0.4147483,97667.0,97665.0,0.3608]
[1739403075188,0.21,97667.0,97665.0,0.3608]
[1739403075889,0.211,97667.0,97665.0,0.3608]
[1739403076394,0.21,97667.0,97665.0,0.3608]
[1739403077090,7.823e-05,97666.0,97665.0,0.3608]
[1739403077393,0.23,97666.0,97665.0,0.3608]
[1739403077789,0.53472144,97666.0,97665.0,0.14564778]
[1739403078498,0.23,97666.0,97665.0,0.14564778]
[1739403078691,0.23,97666.0,97665.0,0.3608]
[1739403078893,0.23,97666.0,97657.0,0.32166232]
[1739403079196,0.23,97666.0,97658.0,0.02561222]
[1739403079486,0.23,97666.0,97659.0,0.02561222]
[1739403079692,0.23,97666.0,97660.0,0.02561222]
[1739403079880,0.23,97666.0,97661.0,0.02561222]
[1739403080087,0.204752,97665.0,97662.0,0.02561222]
[1739403080286,0.434752,97665.0,97662.0,0.02561194]
[1739403080483,0.434752,97665.0,97657.0,0.32166232]
[1739403080484,0.2047607,97661.0,97655.0,0.11231795]
[1739403080684,0.4347607,97661.0,97656.0,0.03201527]
[1739403080895,0.4347607,97661.0,97655.0,0.11231795]
[1739403082093,0.3608,97656.0,97651.0,0.11231795]
[1739403082292,7.823e-05,97655.0,97652.0,0.0512]
[1739403082588,0.23007823,97655.0,97652.0,0.0512]
[1739403083697,0.23007823,97655.0,97645.0,0.11231795]
[1739403083997,0.2047885,97648.0,97646.0,0.02048993]
[1739403084199,0.2047885,97648.0,97647.0,0.02049167]
[1739403084200,0.4447885,97648.0,97647.0,0.02049167]
[1739403084702,0.44486421,97648.0,97647.0,0.02049167]
[1739403084995,0.4447885,97648.0,97647.0,0.05250968]
[1739403085200,0.4447885,97648.0,97647.0,0.08452535]
[1739403085592,0.24,97648.0,97647.0,0.08452535]
[1739403085793,0.3608,97654.0,97640.0,0.29165086]
[1739403086004,0.5708,97654.0,97643.0,0.75712]
[1739403086202,0.5708,97654.0,97644.0,0.24823795]
[1739403086497,0.5708,97654.0,97644.0,0.16111795]
[1739403087198,0.5708,97654.0,97645.0,0.02561145]
[1739403087396,0.5708,97654.0,97644.0,0.16111795]
[1739403087593,0.5708,97654.0,97645.0,0.02561161]
[1739403087800,0.5708,97654.0,97644.0,0.16111795]
[1739403087995,0.5718,97654.0,97644.0,0.16111795]
[1739403088302,0.5718,97654.0,97645.0,0.02561267]
[1739403088605,0.5718,97654.0,97646.0,0.78273267]
[1739403088901,0.5718,97654.0,97647.0,0.02561267]
[1739403089105,0.14945967,97651.0,97648.0,0.02561162]
[1739403089303,0.37945967,97651.0,97649.0,0.02561162]
[1739403089602,0.37945967,97651.0,97650.0,0.02561162]
[1739403090202,0.37945967,97651.0,97650.0,0.02561298]
[1739403090505,0.37945967,97651.0,97650.0,0.05122597]
[1739403090804,0.37945967,97651.0,97650.0,0.07683979]
[1739403091101,0.37945967,97651.0,97650.0,0.076838]
[1739403091305,0.28277699,97651.0,97650.0,0.076838]
[1739403091499,0.28277699,97651.0,97644.0,0.73697995]
[1739403091705,0.28277699,97651.0,97644.0,0.73641995]
[1739403092696,0.28377699,97651.0,97644.0,0.73641995]
[1739403093102,0.28377699,97651.0,97650.0,0.3608]
[1739403093297,0.20897699,97651.0,97650.0,0.3608]
[1739403093503,0.09008121,97671.0,97650.0,0.14566235]
[1739403093709,0.2431918,97682.0,97670.0,0.3608]
[1739403093899,0.2431918,97682.0,97680.0,0.3608]
[1739403094095,0.2431918,97682.0,97681.0,0.03200241]
[1739403094406,0.6039918,97682.0,97681.0,0.03200241]
[1739403094904,0.6199918,97682.0,97681.0,0.03200241]
[1739403095498,0.8187083,97682.0,97681.0,0.03200644]
[1739403095704,0.8187083,97682.0,97681.0,0.05249106]
[1739403095901,0.6139918,97682.0,97681.0,0.05249131]
[1739403096113,0.2047354,97673.0,97672.0,0.0001536]
[1739403096408,0.7555354,97673.0,97672.0,0.02063994]
[1739403097608,0.7555354,97673.0,97672.0,0.0011536]
[1739403098307,1.43014144,97673.0,97672.0,0.0011536]
[1739403100809,1.22540604,97673.0,97655.0,0.75708]
[1739403101013,1.22540604,97673.0,97593.0,0.01]
[1739403101014,0.3608,97656.0,97631.0,0.0472]
[1739403101206,0.0496,97655.0,97644.0,0.75708]
[1739403101510,0.2796,97655.0,97644.0,0.75764]
[1739403101707,0.2047753,97654.0,97644.0,0.75764]
[1739403102011,0.204778,97653.0,97644.0,0.75764]
[1739403102210,0.204778,97653.0,97647.0,0.00853607]
[1739403102211,0.3608,97648.0,97647.0,0.00853607]
[1739403102412,0.5508,97648.0,97647.0,0.00853607]
[1739403103111,0.5508,97648.0,97647.0,0.03414896]
[1739403103910,0.5508,97648.0,97647.0,0.00853607]
[1739403104307,1.22540604,97648.0,97647.0,0.00853607]
[1739403104502,1.22540604,97648.0,97647.0,0.00353607]
[1739403104702,1.43019434,97648.0,97644.0,0.45382527]
[1739403104909,1.43019434,97648.0,97644.0,0.45326527]
[1739403105107,1.43019434,97648.0,97647.0,0.002]
[1739403106311,1.43019434,97648.0,97647.0,0.04810392]
[1739403107107,1.43019434,97648.0,97647.0,0.04610392]
[1739403107813,1.43019434,97648.0,97647.0,0.04710392]
[1739403108114,1.43019434,97648.0,97647.0,0.02149121]
[1739403108817,1.1741345,97648.0,97647.0,0.02149121]
[1739403109116,0.2048114,97637.0,97632.0,0.57194467]
[1739403109311,0.2048315,97628.0,97616.0,0.75869655]
[1739403109505,0.4248315,97628.0,97616.0,0.75925655]
[1739403109704,0.4248315,97628.0,97620.0,0.009189]
[1739403109909,0.4248315,97628.0,97620.0,0.00062744]
[1739403110314,0.3608,97625.0,97620.0,0.00062744]
[1739403110505,0.5608,97625.0,97620.0,0.00062744]
[1739403112008,0.5608,97625.0,97620.0,0.00897841]
[1739403112208,0.5618,97625.0,97621.0,0.02561698]
[1739403112409,0.5618,97625.0,97622.0,0.02561797]
[1739403112611,0.243477,97624.0,97623.0,0.02561797]
[1739403112813,0.443477,97624.0,97623.0,0.02561797]
[1739403113012,0.443477,97624.0,97623.0,0.0256178]
[1739403115315,0.444477,97624.0,97623.0,0.0256178]
[1739403115718,0.25079948,97624.0,97623.0,0.0256178]
[1739403116316,0.24079948,97624.0,97623.0,0.0256178]
[1739403117625,0.23979948,97624.0,97623.0,0.0256178]
[1739403118323,0.191,97624.0,97623.0,0.0256178]
[1739403118718,0.19,97624.0,97623.0,0.02561886]
[1739403118922,0.19,97624.0,97623.0,0.04611392]
[1739403120225,0.15175827,97629.0,97623.0,0.04611392]
[1739403120419,0.35175827,97629.0,97624.0,0.04611392]
[1739403120609,0.15175827,97629.0,97628.0,0.3608]
[1739403120815,0.12643528,97629.0,97628.0,0.4069048]
[1739403121009,0.09110228,97629.0,97628.0,0.4069048]
[1739403121223,0.21258196,97632.0,97628.0,0.4069048]
[1739403121518,0.21258196,97632.0,97629.0,0.16790377]
[1739403121735,0.21258196,97632.0,97630.0,0.04610377]
[1739403121916,0.21258196,97632.0,97631.0,0.04610377]
[1739403122222,0.21258196,97632.0,97631.0,0.04610362]
[1739403123123,0.21258196,97632.0,97631.0,0.07812011]
[1739403123328,0.21258196,97632.0,97631.0,0.10373325]
[1739403124019,0.19207196,97632.0,97631.0,0.10373325]
[1739403124528,0.19207196,97632.0,97631.0,0.07171676]
[1739403124911,0.3608,97643.0,97631.0,0.07171676]
[1739403125115,0.3608,97643.0,97632.0,0.04610362]
[1739403125312,0.3608,97643.0,97633.0,0.04610362]
[1739403125726,0.3608,97643.0,97633.0,0.07171676]
[1739403126421,0.3608,97643.0,97633.0,0.07171659]
[1739403127623,0.3608,97643.0,97633.0,0.04610345]
[1739403128332,0.3608,97643.0,97633.0,0.04710345]
[1739403128832,0.3608,97643.0,97633.0,0.02661303]
[1739403129034,0.3608,97643.0,97633.0,0.04710325]
[1739403130325,0.3608,97643.0,97633.0,0.0791197]
[1739403130519,0.3608,97643.0,97633.0,0.10473247]
[1739403130729,0.3608,97643.0,97633.0,0.10373247]
[1739403131032,0.3608,97643.0,97633.0,0.10473247]
[1739403132230,0.3608,97643.0,97633.0,0.10473379]
[1739403132626,0.3608,97643.0,97633.0,0.10473179]
[1739403133335,0.3608,97643.0,97633.0,0.86197179]
[1739403134130,0.3608,97643.0,97633.0,0.82995579]
[1739403134434,0.3608,97643.0,97633.0,0.86197244]
[1739403136237,0.3608,97643.0,97633.0,0.82995579]
[1739403136832,0.3608,97643.0,97633.0,0.82995578]
[1739403137036,0.3608,97643.0,97634.0,0.04610301]
[1739403137233,0.3608,97643.0,97635.0,0.07811899]
[1739403137433,0.3608,97643.0,97636.0,0.07811899]
[1739403137634,0.3608,97643.0,97637.0,0.07811899]
[1739403137932,0.3608,97643.0,97634.0,0.02561277]
[1739403137933,0.3608,97643.0,97638.0,0.07812049]
[1739403138137,0.3608,97643.0,97639.0,0.13290301]
[1739403138333,0.3608,97643.0,97640.0,0.04610301]
[1739403138530,0.3608,97643.0,97641.0,0.04610301]
[1739403138731,0.3608,97643.0,97642.0,0.04610301]
[1739403139235,0.3608,97643.0,97642.0,0.05471373]
[1739403139639,0.3608,97643.0,97642.0,0.81191373]
[1739403139932,0.3608,97643.0,97642.0,0.81191372]
[1739403140127,0.3608,97643.0,97642.0,0.83752649]
[1739403141237,0.3608,97643.0,97642.0,0.81703627]
[1739403141537,0.3608,97643.0,97642.0,0.83752649]
[1739403143438,0.0001536,97650.0,97642.0,0.83752649]
[1739403143439,0.0001536,97650.0,97642.0,0.86954218]
[1739403143631,0.0001536,97650.0,97643.0,0.07811869]
[1739403143828,0.00487437,97655.0,97644.0,0.07811869]
[1739403144139,0.00487437,97655.0,97645.0,0.07811869]
[1739403144339,0.00487437,97655.0,97646.0,0.07811869]
[1739403144541,0.00487437,97655.0,97647.0,0.07811869]
[1739403144834,0.00487437,97655.0,97648.0,0.07811869]
[1739403145032,0.00487437,97655.0,97649.0,0.07811869]
[1739403145229,0.00487437,97655.0,97650.0,0.07811869]
[1739403145437,0.00487437,97655.0,97651.0,0.07811869]
[1739403145745,0.00487437,97655.0,97652.0,0.07811869]
[1739403146034,0.00487437,97655.0,97653.0,0.07810678]
[1739403146245,0.00487437,97655.0,97654.0,0.07810678]
[1739403146539,0.00487437,97655.0,97654.0,0.10371955]
[1739403147432,0.00487437,97655.0,97654.0,0.02561277]
[1739403147632,0.00487437,97655.0,97654.0,0.12932833]
[1739403148543,0.3608,97657.0,97654.0,0.12932833]
[1739403148743,0.3608,97657.0,97655.0,0.10371556]
[1739403148947,0.3608,97657.0,97656.0,0.10371556]
[1739403149445,0.3608,97657.0,97656.0,0.12932833]
[1739403149645,0.3608,97657.0,97656.0,0.12932832]
[1739403151037,0.5708,97657.0,97656.0,0.12932832]
[1739403151232,0.3608,97657.0,97656.0,0.12932832]
[1739403151844,0.33893277,97657.0,97656.0,0.12932832]
[1739403155737,0.0001536,97661.0,97656.0,0.12932832]
[1739403156047,0.3609536,97661.0,97657.0,0.10371555]
[1739403156249,0.3609536,97661.0,97658.0,0.10371555]
[1739403156444,0.0001536,97661.0,97658.0,0.10371555]
[1739403156643,0.0001536,97661.0,97658.0,0.46451555]
[1739403156855,0.0001536,97661.0,97658.0,0.5221392]
[1739403157551,0.0001536,97661.0,97658.0,0.5261392]
[1739403157934,0.0001536,97661.0,97658.0,0.52613376]
[1739403158740,0.055639,97659.0,97658.0,0.52613376]
[1739403159138,0.055639,97659.0,97658.0,0.16133376]
[1739403159353,0.023393,97659.0,97658.0,0.16533376]
[1739403160941,0.023393,97659.0,97658.0,0.16133376]
[1739403162147,0.023393,97659.0,97658.0,0.16133448]
[1739403164152,0.023393,97659.0,97658.0,0.11523868]
[1739403164351,0.023393,97659.0,97658.0,0.16133193]
[1739403165148,0.023393,97659.0,97658.0,0.91837193]
[1739403170952,0.023393,97659.0,97658.0,0.91837614]
[1739403171656,0.023393,97659.0,97658.0,1.16301356]
[1739403172851,0.023393,97659.0,97658.0,0.40597424]
[1739403173054,0.3481582,97659.0,97658.0,0.34767424]
[1739403173451,0.143393,97659.0,97658.0,0.34767424]
[1739403174148,0.2281582,97659.0,97658.0,0.34767424]
[1739403174854,0.2281582,97659.0,97658.0,0.34768598]
[1739403176256,0.2281582,97659.0,97658.0,0.10372491]
[1739403176454,0.2386964,97659.0,97658.0,0.10372491]
[1739403176656,0.2386964,97659.0,97658.0,0.07171105]
[1739403176850,0.2386964,97659.0,97658.0,0.10372644]
[1739403177356,0.2281582,97659.0,97658.0,0.10372644]
[1739403177948,0.2281582,97659.0,97658.0,0.07171105]
[1739403178552,0.2281582,97659.0,97658.0,0.10372597]
[1739403178952,0.2281582,97659.0,97658.0,0.10372714]
[1739403179356,0.2281582,97659.0,97658.0,0.10372716]
[1739403180962,0.96009526,97659.0,97658.0,0.10372844]
[1739403181263,0.96009526,97659.0,97658.0,0.1357436]
[1739403181659,0.96009526,97659.0,97658.0,0.10372844]
[1739403182558,0.96009526,97659.0,97658.0,0.10372915]
[1739403182964,0.96009526,97659.0,97658.0,0.07171399]
[1739403183959,0.96009526,97659.0,97649.0,0.7576]
[1739403183960,0.2048071,97639.0,97636.0,0.75712]
[1739403184265,0.9264071,97639.0,97638.0,0.05763573]
[1739403184456,0.9264071,97639.0,97636.0,0.75764]
[1739403184656,0.0388,97638.0,97637.0,0.03202069]
[1739403185660,0.0388,97638.0,97637.0,0.04264721]
[1739403185862,0.0348,97638.0,97637.0,0.06826376]
[1739403186262,0.0348,97638.0,97637.0,0.03624307]
[1739403186471,0.0358,97638.0,97637.0,0.04024307]
[1739403186669,0.001,97638.0,97637.0,0.0722626]
[1739403186857,0.001,97638.0,97637.0,0.1088626]
[1739403187165,0.36144,97639.0,97637.0,0.1088626]
[1739403187467,0.3608,97657.0,97638.0,0.03201953]
[1739403187660,0.3608,97657.0,97647.0,0.11231795]
[1739403187861,0.3608,97657.0,97648.0,0.03201953]
[1739403188062,0.3608,97657.0,97649.0,0.03201953]
[1739403188260,0.2047719,97656.0,97650.0,0.03201953]
[1739403188452,0.2047785,97653.0,97651.0,0.03201953]
[1739403188660,0.2147785,97653.0,97652.0,0.03201953]
[1739403188964,0.01,97653.0,97649.0,0.05763523]
[1739403189269,0.0384,97652.0,97638.0,0.001]
[1739403189462,0.2047976,97644.0,97639.0,0.11849767]
[1739403189665,0.07,97644.0,97640.0,0.03201767]
[1739403189863,0.07,97644.0,97641.0,0.03201767]
[1739403190063,0.2405989,97643.0,97642.0,0.03201767]
[1739403190268,0.3905989,97643.0,97642.0,0.03201767]
[1739403191262,0.3905989,97643.0,97642.0,0.0896496]
[1739403192171,0.3905989,97643.0,97642.0,0.0906496]
[1739403193967,0.3905989,97643.0,97642.0,0.13675703]
[1739403195169,0.3905989,97643.0,97642.0,0.13675794]
[1739403195671,0.7513989,97643.0,97642.0,0.10473898]
[1739403195865,0.7513989,97643.0,97630.0,0.11247155]
[1739403195866,0.8466,97643.0,97630.0,0.0001536]
[1739403196065,0.3608,97631.0,97622.0,0.00153629]
[1739403196266,0.3608,97623.0,97622.0,0.00153629]
[1739403196567,0.7956408,97623.0,97622.0,0.02049919]
[1739403197163,0.5908,97623.0,97622.0,0.02049919]
[1739403197472,0.3708,97623.0,97622.0,0.07814536]
[1739403197667,0.3608,97623.0,97622.0,0.07814536]